bitfinex-derivatives/quotes_ETHF0:USTF0_20250816
["timestamp","ask_amount","ask_price","bid_price","bid_amount"]
[1755358597008,3.2078,4403.9,4403.8,0.8599]
[1755358597217,4.7114,4403.9,4403.8,1.243]
[1755358597614,4.4567,4403.9,4403.1,0.10219956]
[1755358597819,1.5036,4403.2,4403.1,0.69919956]
[1755358598019,1.5036,4403.2,4403.1,1.34519956]
[1755358598324,1.5036,4403.2,4403.1,1.58979956]
[1755358598819,1.2526,4403.2,4403.1,1.58979956]
[1755358599219,1.5036,4403.2,4403.1,1.34519956]
[1755358600620,3.2078,4403.4,4403.3,0.5995]
[1755358600820,3.2078,4404.0,4403.9,0.5995]
[1755358601016,0.3968,4404.4,4403.9,1.4876]
[1755358601216,1.21881197,4405.8,4403.9,1.4876]
[1755358601217,3.2078,4404.6,4403.9,0.5995]
[1755358601419,1.2526,4404.3,4404.2,0.5995]
[1755358601728,1.5036,4404.3,4404.2,1.243]
[1755358601924,1.2526,4404.3,4404.2,1.4876]
[1755358602123,1.5036,4404.3,4404.2,1.243]
[1755358602818,1.0795,4404.3,4404.2,1.243]
[1755358603023,1.5036,4404.3,4404.2,1.243]
[1755358603619,0.2547,4404.5,4404.3,0.6435]
[1755358603820,3.2078,4404.6,4404.5,1.4876]
[1755358604425,3.4625,4404.6,4404.5,1.4876]
[1755358604824,3.8905,4404.6,4404.5,1.4876]
[1755358605023,4.7114,4404.6,4404.5,1.243]
[1755358605627,4.7114,4404.6,4404.5,0.1633]
[1755358606126,3.2078,4404.6,4404.5,1.243]
[1755358606329,4.2873,4404.6,4404.5,1.4876]
[1755358606529,4.7114,4404.6,4404.5,1.4876]
[1755358607322,4.7114,4404.6,4404.5,1.243]
[1755358607525,3.8089,4404.6,4403.9,0.8881]
[1755358607726,0.428,4404.1,4404.0,1.243]
[1755358607926,0.8248,4404.1,4404.0,1.4876]
[1755358608230,0.6827,4404.1,4404.0,1.4876]
[1755358609127,0.4221,4404.1,4404.0,1.4876]
[1755358609435,0.2558,4404.3,4404.2,1.4953]
[1755358610033,0.4253,4404.3,4404.2,1.4953]
[1755358610232,0.8509,4404.3,4404.2,1.4953]
[1755358610534,1.5034,4404.3,4404.2,1.2306]
[1755358616544,0.1695,4403.9,4403.8,3.2078]
[1755358616739,1.5034,4403.9,4403.8,3.2078]
[1755358617031,1.5034,4403.9,4403.8,4.4384]
[1755358618437,1.2372,4403.9,4403.8,4.7031]
[1755358619642,0.2558,4403.9,4403.8,4.7031]
[1755358619934,0.3863,4404.5,4403.9,0.9145]
[1755358620140,1.5034,4404.5,4404.4,1.2306]
[1755358620437,0.2558,4404.5,4404.4,1.2306]
[1755358620733,1.5034,4404.5,4404.4,1.2306]
[1755358621833,0.5951,4404.0,4403.9,0.8315]
[1755358622038,1.5034,4404.0,4403.9,1.2306]
[1755358622436,1.5034,4404.0,4403.9,1.4953]
[1755358623146,0.6878,4404.5,4404.4,0.9799]
[1755358623442,1.0741,4404.5,4404.4,1.4953]
[1755358623642,1.2372,4404.5,4404.4,1.4953]
[1755358623830,1.5034,4404.5,4404.4,1.4953]
[1755358624847,1.5034,4404.5,4404.4,1.2306]
[1755358629240,1.72282679,4404.5,4404.4,1.2306]
[1755358630636,2.39034101,4404.5,4404.4,1.2306]
[1755358630837,1.72282679,4404.5,4404.4,1.2306]
[1755358631037,1.72300228,4404.5,4404.4,1.2306]
[1755358631548,2.39045694,4404.5,4404.4,1.2306]
[1755358637144,2.39056592,4404.5,4404.4,1.2306]
[1755358642048,0.21971126,4404.5,4404.4,1.2533]
[1755358642234,0.4265,4405.0,4404.9,0.1779]
[1755358642444,2.1231225,4405.0,4404.9,0.5932]
[1755358642639,2.3723225,4405.0,4404.9,1.4681]
[1755358642842,2.1978225,4405.0,4404.9,1.4681]
[1755358643146,2.19782143,4405.0,4404.9,1.4681]
[1755358644944,1.70876717,4405.0,4404.9,1.4681]
[1755358645253,1.73146717,4405.0,4403.9,3.2078]
[1755358645443,0.1766,4404.1,4404.0,0.2532]
[1755358645635,1.4887,4404.1,4404.0,0.1687]
[1755358646037,0.3511,4403.5,4403.4,3.8076]
[1755358646241,1.4887,4403.5,4403.4,1.2144]
[1755358646442,1.4887,4403.5,4403.0,0.368]
[1755358646642,1.4887,4403.2,4402.8,0.6212]
[1755358647044,1.4887,4403.2,4403.1,0.35539956]
[1755358647246,1.4887,4403.2,4403.1,0.10219956]
[1755358647444,1.4887,4403.2,4403.1,0.27089956]
[1755358647650,1.4887,4403.2,4403.1,1.31659956]
[1755358650152,1.4887,4403.2,4403.1,0.94859956]
[1755358650447,1.4887,4403.2,4403.1,0.10219956]
[1755358650653,2.39229189,4403.2,4403.1,0.10219956]
[1755358651052,2.39229189,4403.2,4402.2,0.368]
[1755358651053,0.597,4402.3,4402.2,0.7899]
[1755358651253,4.6965,4402.3,4402.2,0.4219]
[1755358652150,4.6965,4402.3,4402.2,1.2144]
[1755358655450,3.2078,4402.8,4402.7,0.5932]
[1755358655647,0.2499,4402.9,4402.8,0.8749]
[1755358655851,3.2078,4403.3,4403.2,0.8469]
[1755358656060,3.2078,4403.3,4402.9,0.0227]
[1755358656061,3.2078,4403.8,4403.7,0.5932]
[1755358656252,3.2078,4403.8,4403.7,1.4681]
[1755358656552,0.3492,4404.2,4403.7,1.4681]
[1755358656553,0.1,4404.2,4404.1,1.4908]
[1755358656751,3.2078,4405.2,4405.0,0.6212]
[1755358656952,0.2492,4406.1,4405.6,0.5932]
[1755358657145,1.4887,4406.0,4405.9,0.5932]
[1755358657344,3.4577,4406.2,4405.9,0.5932]
[1755358657655,3.8802,4406.2,4406.1,1.4681]
[1755358657954,4.6965,4406.2,4405.8,0.2532]
[1755358658151,0.597,4405.9,4405.8,0.9678]
[1755358658351,1.4887,4405.9,4405.8,1.2144]
[1755358659859,1.4887,4405.9,4405.8,0.1687]
[1755358660047,0.597,4405.9,4405.3,0.2537]
[1755358660253,1.4887,4405.6,4405.5,1.2144]
[1755358660551,0.22130838,4407.5,4405.1,3.2078]
[1755358660552,3.2078,4406.8,4406.7,0.4153]
[1755358660748,3.2078,4406.8,4406.7,1.4681]
[1755358661756,0.8469,4407.3,4407.2,0.5932]
[1755358662060,1.4887,4407.3,4407.2,1.2144]
[1755358662651,0.6724,4407.3,4407.2,1.4681]
[1755358662962,1.4887,4407.3,4407.2,1.2144]
[1755358665257,1.4887,4407.3,4407.2,0.8464]
[1755358665453,0.1766,4406.6,4406.5,0.4311]
[1755358665653,0.8469,4406.6,4406.5,1.4681]
[1755358665859,0.8469,4406.6,4405.9,23.9938]
[1755358665860,0.1766,4406.0,4405.9,1.0457]
[1755358666062,0.1766,4406.0,4405.9,1.4681]
[1755358666063,0.2499,4406.0,4405.9,1.4681]
[1755358666363,0.2499,4406.3,4406.2,0.5932]
[1755358666554,0.2499,4406.3,4406.2,1.4681]
[1755358666759,0.4265,4406.3,4406.2,1.4681]
[1755358666964,1.4887,4406.3,4406.2,1.2144]
[1755358667158,1.4887,4406.3,4406.2,0.8464]
[1755358667361,0.4225,4405.5,4405.4,0.8464]
[1755358667560,1.4887,4405.5,4405.4,0.1687]
[1755358667754,4.6965,4405.5,4405.4,0.1687]
[1755358667959,3.8048,4405.5,4404.9,20.784]
[1755358668159,4.6965,4405.0,4404.9,21.9984]
[1755358668960,1.4887,4405.0,4404.2,0.6593]
[1755358669165,0.5913,4404.4,4404.0,3.2078]
[1755358669361,0.9049,4404.0,4403.2,0.6593]
[1755358669568,0.4286,4403.3,4403.2,1.5008]
[1755358669863,0.8518,4403.3,4403.2,1.2493]
[1755358670060,4.704,4403.3,4403.2,0.1637]
[1755358671059,4.704,4403.3,4403.2,0.9918]
[1755358671869,4.704,4403.3,4403.2,1.2493]
[1755358672168,4.704,4403.3,4403.2,0.3325]
[1755358672768,4.704,4403.3,4403.1,0.10219956]
[1755358672972,1.4962,4403.2,4403.1,0.10219956]
[1755358673468,1.5189,4403.2,4403.1,0.10219956]
[1755358673670,1.4962,4403.2,4403.1,0.10219956]
[1755358675468,1.4962,4403.2,4401.4,0.45411]
[1755358675469,0.0227,4403.1,4401.4,0.3966]
[1755358675670,0.8518,4402.1,4402.0,0.3325]
[1755358675870,1.4962,4402.1,4402.0,0.5952]
[1755358676063,1.4962,4402.1,4402.0,1.2493]
[1755358677366,0.9049,4402.1,4400.7,0.9108]
[1755358677665,1.4962,4401.5,4401.4,1.2493]
[1755358678063,3.2078,4401.6,4401.5,0.2515]
[1755358678262,3.2078,4401.6,4401.5,1.5008]
[1755358678465,3.8915,4401.6,4401.5,1.5008]
[1755358678666,3.2078,4401.6,4401.5,1.5008]
[1755358679566,3.8522,4401.6,4400.7,0.6593]
[1755358679868,3.8522,4401.6,4400.8,0.5142]
[1755358679869,0.2592,4401.5,4400.8,0.5142]
[1755358680070,1.237,4401.4,4401.3,0.3325]
[1755358680267,3.2078,4401.6,4401.4,0.9108]
[1755358680473,3.2078,4401.6,4401.5,1.5008]
[1755358680673,3.2078,4402.1,4401.5,0.59]
[1755358680873,1.4962,4401.7,4401.6,0.1637]
[1755358681175,0.9765,4401.0,4400.9,1.2493]
[1755358681375,1.2357,4401.0,4400.9,1.2493]
[1755358681575,1.4962,4401.0,4400.9,1.2493]
[1755358681771,1.4962,4401.0,4400.6,3.2078]
[1755358681973,1.2357,4400.7,4400.6,3.5403]
[1755358682170,1.4962,4400.7,4400.6,4.4571]
[1755358682471,3.2078,4401.5,4400.6,3.2078]
[1755358682667,0.9049,4400.9,4400.4,0.6481]
[1755358682867,1.4962,4400.5,4400.4,0.1637]
[1755358683067,1.4962,4400.5,4400.1,0.6593]
[1755358683068,0.5913,4400.5,4400.1,0.6593]
[1755358683267,0.5913,4400.2,4400.1,1.2493]
[1755358683479,3.2078,4401.0,4400.0,3.2078]
[1755358683771,32.9632,4402.2,4395.8,0.2627]
[1755358683772,3.2078,4400.1,4399.1,0.5142]
[1755358683965,3.2078,4400.1,4399.0,3.6044]
[1755358683966,3.2078,4400.1,4399.8,0.59]
[1755358684171,1.4962,4400.0,4399.9,1.2493]
[1755358684376,1.2357,4399.1,4399.0,3.2078]
[1755358684571,1.4962,4399.1,4398.6,0.2627]
[1755358684766,0.1681,4399.0,4398.9,0.9866]
[1755358684971,0.2605,4399.4,4398.9,1.2493]
[1755358685170,3.2078,4399.6,4399.3,0.3966]
[1755358685371,0.5197,4399.1,4398.2,3.2078]
[1755358685565,0.5197,4398.9,4398.4,0.2627]
[1755358685872,3.2078,4399.6,4399.0,0.5142]
[1755358686069,1.21881197,4402.3,4399.0,0.5142]
[1755358686070,0.2605,4400.2,4399.6,0.9108]
[1755358686264,3.2078,4400.8,4399.0,3.2078]
[1755358686265,0.0227,4400.7,4399.0,3.2078]
[1755358686474,0.18386169,4401.8,4398.5,15.1]
[1755358686475,3.2078,4399.1,4398.5,0.2627]
[1755358686668,0.9049,4399.0,4398.5,0.2627]
[1755358686865,0.6444,4399.0,4398.2,0.2627]
[1755358687070,0.9049,4398.9,4398.2,0.2627]
[1755358687267,0.9049,4399.0,4398.2,0.2627]
[1755358687467,0.9049,4398.9,4398.2,0.2627]
[1755358687670,0.9049,4399.0,4398.2,0.2627]
[1755358687980,0.3852,4398.9,4398.2,0.2627]
[1755358688170,0.2605,4398.8,4398.2,0.5142]
[1755358688474,3.4683,4399.6,4398.6,3.2078]
[1755358688671,3.8535,4399.6,4398.7,0.2627]
[1755358688973,0.6457,4399.4,4398.7,0.9108]
[1755358689170,0.6457,4399.2,4398.7,0.9108]
[1755358689375,0.9049,4399.5,4398.8,0.6593]
[1755358689568,0.9049,4399.5,4398.9,0.5142]
[1755358689773,1.237,4399.0,4398.9,1.5008]
[1755358689969,1.4962,4399.0,4398.9,1.2493]
[1755358690171,1.4962,4398.7,4398.6,1.2493]
[1755358690372,0.2605,4400.0,4398.6,3.2305]
[1755358690671,0.6837,4400.0,4399.9,1.2493]
[1755358691174,0.6837,4400.0,4399.9,1.5008]
[1755358691175,0.4267,4400.0,4399.9,1.5008]
[1755358691372,0.6837,4400.0,4399.9,1.5008]
[1755358692075,3.631,4400.6,4400.5,0.59]
[1755358692278,3.8915,4400.6,4400.5,1.2493]
[1755358692473,4.2767,4400.6,4400.5,1.2493]
[1755358693076,4.704,4400.6,4400.5,1.2493]
[1755358693277,4.704,4400.6,4400.5,0.5952]
[1755358693673,0.5913,4400.3,4400.2,0.5952]
[1755358693977,0.5913,4399.9,4399.8,0.9918]
[1755358694177,1.4962,4399.9,4399.8,0.9918]
[1755358694476,1.4962,4399.9,4399.8,0.5952]
[1755358694979,1.4962,4399.9,4399.8,1.2493]
[1755358695977,1.4962,4399.9,4399.8,1.5008]
[1755358696280,0.6444,4400.3,4399.8,1.5008]
[1755358696482,1.2357,4400.2,4400.1,0.59]
[1755358696777,1.2357,4400.2,4400.1,1.5008]
[1755358696778,0.6837,4400.2,4400.1,1.5008]
[1755358696975,3.2078,4400.6,4400.1,1.5008]
[1755358697278,3.8915,4400.6,4400.5,1.5008]
[1755358697972,0.6837,4400.6,4400.5,1.5008]
[1755358698174,0.4267,4401.1,4401.0,0.3325]
[1755358698375,1.07973217,4401.1,4401.0,1.5008]
[1755358698571,1.87643217,4401.1,4401.0,0.3325]
[1755358698777,0.2418,4401.0,4400.5,0.6576]
[1755358699082,0.2418,4401.0,4400.1,3.2078]
[1755358699083,0.596,4400.6,4400.1,3.2078]
[1755358699274,1.4576,4400.3,4399.8,0.45428]
[1755358699581,2.11123574,4400.2,4400.1,1.2418]
[1755358700977,2.11123574,4400.2,4399.5,0.2562]
[1755358700978,0.8616,4400.1,4399.5,0.2562]
[1755358701281,0.596,4399.6,4399.5,0.3384]
[1755358701469,1.24963574,4399.6,4399.5,0.3384]
[1755358701676,2.11123574,4399.6,4399.1,3.2078]
[1755358701871,0.8616,4399.4,4398.7,0.6576]
[1755358702070,0.65461287,4399.3,4398.5,3.8654]
[1755358702279,1.26801287,4399.2,4398.5,4.1091]
[1755358702473,0.65461287,4399.1,4398.5,4.1091]
[1755358702674,1.25061287,4399.1,4399.0,0.5946]
[1755358702875,2.11221287,4399.1,4399.0,0.5946]
[1755358703676,0.3529,4398.6,4398.5,3.5462]
[1755358703979,1.86401287,4398.6,4398.5,4.6933]
[1755358704182,1.49241287,4398.6,4398.5,4.6933]
[1755358704482,1.49241287,4398.6,4398.5,0.8404]
[1755358704779,2.11221287,4398.6,4398.5,1.2418]
[1755358705686,2.11221287,4398.6,4398.5,0.9856]
[1755358706181,2.11221287,4398.6,4398.5,1.2418]
[1755358706589,2.11221287,4398.6,4398.5,0.1629]
[1755358706778,2.11221287,4398.6,4398.5,1.2418]
[1755358707486,0.65461287,4398.6,4398.5,4.6933]
[1755358708382,0.65461287,4398.6,4398.5,26.0893]
[1755358708787,0.65461287,4398.6,4398.5,1.4855]
[1755358708987,0.89641287,4398.6,4398.5,22.8785]
[1755358709384,0.65461287,4398.6,4398.5,22.8785]
[1755358710683,0.83201287,4398.6,4398.5,1.4855]
[1755358710877,0.83201287,4398.6,4398.5,0.3384]
[1755358710878,2.11221287,4398.6,4398.5,0.3384]
[1755358711084,2.11221287,4398.6,4398.5,21.378]
[1755358711282,1.07381287,4398.6,4398.5,21.7164]
[1755358711483,1.07381287,4398.6,4398.5,22.6198]
[1755358711484,2.11221287,4398.6,4398.5,22.6198]
[1755358711781,2.11221287,4398.6,4398.5,22.6208]
[1755358712186,2.11221287,4398.6,4398.5,21.379]
[1755358712589,2.11221287,4398.6,4398.5,21.7174]
[1755358712790,2.11221287,4398.6,4398.5,22.6208]
[1755358713285,2.3342274,4398.6,4398.5,22.6208]
[1755358713490,2.0860274,4398.6,4398.5,22.8645]
[1755358713992,2.33423074,4398.6,4398.5,22.8535]
[1755358717494,1.47263074,4398.6,4398.0,19.2091]
[1755358717797,1.4576,4398.2,4398.1,22.8295]
[1755358717993,2.11221287,4398.2,4398.1,22.8295]
[1755358718290,1.86401287,4398.2,4398.1,22.8295]
[1755358719090,1.31691287,4398.2,4398.1,23.28396]
[1755358719290,1.07511287,4398.2,4398.1,22.8295]
[1755358720389,0.4205,4398.2,4398.1,22.8295]
[1755358721393,0.6623,4398.2,4398.1,22.8295]
[1755358721785,0.6623,4398.2,4398.1,22.7945]
[1755358721992,0.8378,4398.2,4398.1,22.7945]
[1755358722797,1.4576,4398.2,4398.1,22.7905]
[1755358722991,1.4576,4398.2,4398.1,22.5468]
[1755358723193,0.2431,4397.6,4397.5,3.2078]
[1755358723396,1.4576,4397.6,4397.5,24.5088]
[1755358723595,1.4576,4397.6,4397.5,24.8472]
[1755358723794,1.4576,4397.6,4397.5,25.1034]
[1755358724199,1.4576,4397.6,4397.5,25.3492]
[1755358724794,1.4576,4397.6,4397.5,25.3522]
[1755358725001,1.4576,4397.6,4397.5,25.096]
[1755358725201,1.4576,4397.6,4397.5,3.6291]
[1755358725398,1.4576,4397.6,4397.5,21.4705]
[1755358725599,1.4576,4397.1,4397.0,1.2418]
[1755358725793,1.4576,4397.1,4397.0,37.3766]
[1755358725998,1.4576,4397.1,4397.0,36.39]
[1755358726195,1.4576,4397.1,4397.0,21.8742]
[1755358726399,1.4576,4397.1,4397.0,1.2418]
[1755358726603,1.4576,4397.1,4397.0,22.5278]
[1755358726806,1.4576,4397.1,4397.0,0.9856]
[1755358726993,1.4576,4397.1,4397.0,1.2418]
[1755358727402,1.4576,4397.1,4397.0,22.7695]
[1755358727597,1.4576,4397.1,4396.3,0.19958314]
[1755358727598,0.4186,4396.7,4396.6,0.1629]
[1755358727805,1.086,4396.7,4396.6,21.28]
[1755358728004,1.086,4396.7,4396.6,21.6184]
[1755358728207,1.4576,4396.7,4396.6,1.4855]
[1755358728403,1.4576,4396.7,4396.6,1.2418]
[1755358728707,0.8553,4396.3,4396.2,3.2078]
[1755358728900,1.5179,4396.3,4396.2,24.6608]
[1755358729104,1.5179,4396.3,4396.2,25.0853]
[1755358729301,1.5179,4396.3,4396.2,25.0833]
[1755358729503,1.5179,4396.3,4396.2,3.8073]
[1755358729705,1.5179,4396.3,4396.2,25.0813]
[1755358730006,1.5179,4396.3,4396.2,25.7205]
[1755358730202,1.5179,4396.3,4396.2,4.4465]
[1755358730403,1.5179,4396.3,4396.1,0.10236229]
[1755358730404,1.5179,4396.2,4396.1,0.10236229]
[1755358732505,4.7257,4396.2,4396.1,0.10236229]
[1755358732707,4.7257,4396.2,4395.9,21.264]
[1755358732905,0.6037,4396.0,4395.9,21.264]
[1755358733211,1.5179,4396.0,4395.9,22.5027]
[1755358733405,1.5179,4396.0,4395.9,22.7584]
[1755358733808,1.5179,4396.0,4395.9,21.6131]
[1755358734006,1.5179,4396.0,4395.9,21.264]
[1755358734207,1.5179,4396.0,4395.9,0.6073]
[1755358734407,1.5179,4396.0,4395.9,22.7544]
[1755358734608,0.6626,4396.7,4395.9,22.123]
[1755358734811,1.2663,4396.7,4396.6,0.2582]
[1755358735014,0.5183,4396.7,4396.2,21.262]
[1755358735206,0.6037,4396.3,4395.6,0.2504]
[1755358735405,1.5179,4396.2,4396.1,0.6073]
[1755358735609,1.5179,4396.2,4396.1,22.7554]
[1755358735911,1.5179,4396.7,4396.6,0.8577]
[1755358736111,1.5179,4396.7,4396.6,1.2387]
[1755358736311,1.5179,4396.7,4396.6,1.4944]
[1755358736908,0.8704,4396.7,4396.6,1.4944]
[1755358737106,0.1738,4396.7,4396.6,1.4944]
[1755358737908,0.8704,4396.7,4396.6,1.4944]
[1755358739404,0.3959,4397.0,4396.6,1.4944]
[1755358739405,0.2667,4396.9,4396.6,0.6073]
[1755358739608,0.2667,4396.9,4396.8,0.6073]
[1755358739908,0.2667,4396.9,4396.8,1.4944]
[1755358740210,0.1,4397.2,4397.1,0.4332]
[1755358740408,0.1,4397.2,4397.1,25.9452]
[1755358741212,0.1,4397.2,4397.1,28.9679]
[1755358741410,0.2516,4398.7,4397.3,0.8871]
[1755358741609,0.9142,4398.7,4397.8,3.2078]
[1755358741812,0.8704,4398.0,4397.9,22.7354]
[1755358742510,1.5179,4398.0,4397.9,22.7354]
[1755358743814,1.5179,4398.1,4398.0,1.4944]
[1755358744115,1.5179,4397.6,4397.5,1.2387]
[1755358744414,0.1679,4398.2,4398.1,1.4944]
[1755358744618,0.2667,4398.3,4398.2,1.4944]
[1755358744820,0.4405,4398.3,4398.2,1.4944]
[1755358745018,1.5179,4398.3,4398.2,1.4944]
[1755358745318,1.5179,4398.3,4398.2,22.7254]
[1755358745516,1.5179,4398.3,4398.2,1.4944]
[1755358745818,1.5179,4398.3,4398.2,22.7214]
[1755358746319,0.8704,4398.3,4398.2,22.7214]
[1755358746713,1.5179,4398.3,4398.0,3.2078]
[1755358746913,0.9142,4398.2,4398.1,21.8263]
[1755358747214,1.5179,4398.2,4398.1,22.4577]
[1755358747612,4.0631,4398.8,4398.7,0.6073]
[1755358747815,4.7257,4398.8,4398.7,1.2387]
[1755358748413,4.7257,4398.8,4398.7,0.1741]
[1755358748719,0.6626,4398.7,4398.4,21.209]
[1755358748915,0.6037,4398.5,4398.4,21.209]
[1755358749220,0.6037,4398.1,4397.5,3.4635]
[1755358749413,1.5179,4397.8,4397.7,1.4944]
[1755358749713,0.8704,4397.8,4397.7,1.4944]
[1755358750112,1.5179,4397.8,4397.7,1.4944]
[1755358750314,1.5179,4397.8,4397.7,22.4417]
[1755358750917,1.5179,4397.8,4397.7,22.6974]
[1755358751311,1.5179,4397.8,4397.7,22.6934]
[1755358751714,0.8704,4397.8,4397.7,22.6934]
[1755358752317,1.5179,4397.8,4397.7,22.6934]
[1755358752721,1.5179,4397.8,4397.7,22.4377]
[1755358753023,1.5179,4397.8,4397.7,1.2387]
[1755358753318,1.5179,4397.8,4397.7,22.4207]
[1755358753724,1.5179,4397.8,4397.7,22.4167]
[1755358754427,0.6037,4397.6,4397.5,21.176]
[1755358754724,0.6037,4397.3,4397.2,1.2387]
[1755358755022,1.5179,4397.3,4397.2,1.2387]
[1755358755216,1.5179,4397.3,4397.1,32.746]
[1755358755416,0.6037,4396.8,4396.7,1.2387]
[1755358755617,1.5179,4396.8,4396.7,22.4127]
[1755358755820,1.5179,4396.8,4396.7,0.1741]
[1755358756019,1.5179,4396.8,4396.7,21.171]
[1755358757419,1.5179,4396.8,4396.3,0.6314]
[1755358757624,0.6037,4396.5,4396.4,22.4037]
[1755358757923,1.5179,4396.5,4396.4,22.4037]
[1755358758126,1.5179,4396.5,4396.4,0.6073]
[1755358758419,1.5179,4396.5,4396.4,21.7683]
[1755358758824,1.5179,4396.5,4396.4,22.427]
[1755358759020,0.8806,4397.2,4396.4,22.0323]
[1755358759219,1.2192,4397.2,4397.1,1.5049]
[1755358759426,1.4652,4397.2,4397.1,22.6649]
[1755358759820,1.4652,4397.2,4397.1,22.4009]
[1755358760026,1.4652,4397.2,4397.1,21.7422]
[1755358760222,0.5846,4396.5,4396.4,1.2407]
[1755358760420,0.8806,4397.3,4396.5,0.2642]
[1755358760625,0.633,4396.8,4396.5,1.5049]
[1755358760824,0.8322,4396.7,4396.6,1.5049]
[1755358761126,1.4652,4396.7,4396.6,1.5049]
[1755358761527,1.4652,4396.7,4396.6,1.2409]
[1755358761827,1.4652,4396.7,4396.6,1.5049]
[1755358763031,0.8322,4396.7,4396.6,1.5049]
[1755358766528,1.4652,4396.7,4396.6,1.5049]
[1755358766725,1.4652,4396.7,4396.6,4.7127]
[1755358766929,0.8322,4396.7,4396.6,4.7127]
[1755358767232,0.8322,4396.7,4396.6,1.5049]
[1755358767822,0.633,4397.0,4396.6,3.79]
[1755358768025,0.387,4397.8,4397.4,0.7017]
[1755358768232,1.4652,4397.8,4397.7,1.2409]
[1755358768435,1.4652,4397.8,4397.7,1.5049]
[1755358768635,1.4652,4397.8,4397.7,1.2409]
[1755358768931,1.4652,4397.3,4397.2,1.5049]
[1755358769244,1.4652,4397.3,4397.2,22.6239]
[1755358770027,1.4652,4397.3,4397.2,21.112]
[1755358770528,0.5846,4396.8,4396.7,0.5822]
[1755358770734,0.6073,4396.8,4396.1,3.31016229]
[1755358770940,1.4652,4396.2,4396.1,0.10236229]
[1755358771232,4.673,4396.2,4396.1,0.10236229]
[1755358773938,3.2078,4396.2,4396.1,0.10236229]
[1755358774134,4.673,4396.2,4396.1,1.34326229]
[1755358774438,4.673,4396.2,4396.1,0.10236229]
[1755358775133,0.4936,4396.2,4396.1,1.21276229]
[1755358775434,1.0573,4396.2,4396.1,1.60726229]
[1755358775832,1.4652,4396.2,4396.1,0.10236229]
[1755358776226,1.4652,4396.2,4396.1,1.60726229]
[1755358776430,0.1638,4396.3,4396.2,0.3945]
[1755358776633,0.4114,4396.3,4396.2,1.5049]
[1755358776836,1.4652,4396.3,4396.2,1.5049]
[1755358777030,1.4652,4396.3,4396.1,0.10236229]
[1755358777232,1.4652,4396.2,4396.1,0.10236229]
[1755358777634,1.4652,4396.2,4396.1,0.68456229]
[1755358777835,1.4652,4396.2,4396.1,1.34326229]
[1755358778027,1.4652,4396.2,4396.1,1.60726229]
[1755358778233,1.4652,4396.2,4396.1,0.43976229]
[1755358779139,1.4652,4396.2,4396.1,1.34326229]
[1755358779534,1.4652,4396.2,4396.1,22.44226229]
[1755358779937,1.4652,4396.2,4396.1,22.43926229]
[1755358780536,1.4652,4396.2,4396.1,22.04476229]
[1755358780740,1.4652,4396.2,4396.1,0.10236229]
[1755358782439,1.4652,4396.2,4396.1,1.34326229]
[1755358784838,1.4652,4396.2,4396.1,1.60726229]
[1755358785044,0.8322,4396.2,4396.1,1.60726229]
[1755358785346,0.6703,4396.2,4396.1,1.60726229]
[1755358785546,3.2078,4396.3,4396.2,1.5049]
[1755358786040,4.04,4396.3,4396.2,1.5049]
[1755358786345,4.673,4396.3,4396.2,1.5049]
[1755358788945,4.673,4396.3,4396.2,1.2409]
[1755358789945,4.673,4396.3,4396.2,1.4905]
[1755358790141,3.6192,4396.3,4396.2,1.4905]
[1755358790346,3.4554,4396.3,4396.2,1.4905]
[1755358790647,3.62,4396.3,4396.2,1.4905]
[1755358790845,4.3094,4396.3,4396.2,1.4905]
[1755358791341,0.8452,4396.3,4396.2,1.4905]
[1755358791543,0.3753,4396.5,4396.2,1.4905]
[1755358791739,1.4731,4396.8,4396.7,0.5786]
[1755358792143,3.2078,4396.9,4396.7,1.475]
[1755358792344,3.8711,4396.9,4396.8,1.475]
[1755358792647,0.6633,4396.9,4396.8,1.475]
[1755358793241,0.6317,4397.2,4396.8,0.5786]
[1755358793436,0.6317,4397.2,4396.4,24.72613]
[1755358793437,3.5831,4397.4,4396.4,3.2078]
[1755358793643,1.4731,4396.7,4396.6,22.2684]
[1755358794546,0.5976,4396.7,4396.6,21.046]
[1755358794849,0.5976,4396.7,4396.1,0.10236229]
[1755358795042,0.8755,4396.6,4396.5,21.044]
[1755358795242,1.0536,4396.6,4396.5,21.044]
[1755358795437,1.4731,4396.6,4396.5,21.3735]
[1755358795643,1.4731,4396.6,4396.5,21.044]
[1755358796246,1.4731,4396.6,4396.5,21.212]
[1755358796549,1.4731,4396.6,4396.5,22.519]
[1755358797448,0.8414,4396.6,4396.5,22.519]
[1755358797742,3.8395,4396.9,4396.7,0.5786]
[1755358797743,0.6633,4396.8,4396.7,0.5786]
[1755358797943,1.4731,4396.8,4396.7,1.475]
[1755358799046,3.4516,4396.9,4396.8,0.8964]
[1755358799251,3.2078,4396.9,4396.8,1.475]
[1755358799450,4.6809,4396.9,4396.8,1.475]
[1755358799850,1.4731,4396.9,4396.8,1.475]
[1755358800547,0.2564,4397.2,4396.8,1.475]
[1755358800853,1.4731,4397.0,4396.9,1.475]
[1755358801653,3.8846,4397.9,4397.8,0.4106]
[1755358801848,4.6809,4397.9,4397.8,1.2254]
[1755358802251,0.3427,4397.6,4397.5,21.013]
[1755358802456,1.4731,4397.0,4396.9,16.1639]
[1755358802655,1.4731,4397.0,4396.9,36.9187]
[1755358802851,0.5002,4396.9,4396.4,3.5964]